[Event "Titled Tuesday Blitz November 14 Late 2023"]
[White "Kuznecovs, Nikita"]
[Black "Stanojevic, Ilija"]
[WhiteFideId "11604557"]
[BlackFideId "959995"]
[WhiteElo "2545"]
[BlackElo "2432"]
[Result "1-0"]
[Round "7"]
[TimeControl "180+1"]
[Date "2023.11.14"]
[WhiteClock "0:00:15"]
[BlackClock "0:00:00"]
[Board "75"]

1. Nf3 {[%clk 0:02:49]}  d5 {[%clk 0:02:59]} 2. g3 {[%clk 0:02:49]}  c6 {[%clk 0:02:58]} 3. Bg2 {[%clk 0:02:49]}  Bg4 {[%clk 0:02:59]} 4. h3 {[%clk 0:02:49]}  Bh5 {[%clk 0:02:58]} 5. d3 {[%clk 0:02:47]}  Nd7 {[%clk 0:02:56]} 6. g4 {[%clk 0:02:46]}  Bg6 {[%clk 0:02:56]} 7. Nh4 {[%clk 0:02:46]}  e5 {[%clk 0:02:55]} 8. Nxg6 {[%clk 0:02:47]}  hxg6 {[%clk 0:02:55]} 9. Nd2 {[%clk 0:02:45]}  f5 {[%clk 0:02:56]} 10. c4 {[%clk 0:02:41]}  d4 {[%clk 0:02:49]} 11. e3 {[%clk 0:02:40]}  dxe3 {[%clk 0:02:48]} 12. fxe3 {[%clk 0:02:38]}  Qh4+ {[%clk 0:02:49]} 13. Kf1 {[%clk 0:02:38]}  Bc5 {[%clk 0:02:49]} 14. d4 {[%clk 0:02:26]}  exd4 {[%clk 0:02:37]} 15. Nf3 {[%clk 0:02:26]}  Qg3 {[%clk 0:02:35]} 16. exd4 {[%clk 0:02:24]}  Bb4 {[%clk 0:02:30]} 17. a3 {[%clk 0:02:16]}  fxg4 {[%clk 0:02:28]} 18. hxg4 {[%clk 0:02:16]}  Rxh1+ {[%clk 0:02:28]} 19. Bxh1 {[%clk 0:02:17]}  Ba5 {[%clk 0:02:22]} 20. b4 {[%clk 0:02:14]}  Bc7 {[%clk 0:02:21]} 21. Qe1+ {[%clk 0:02:14]}  Qxe1+ {[%clk 0:02:19]} 22. Nxe1 {[%clk 0:02:13]}  Ngf6 {[%clk 0:02:10]} 23. Bf3 {[%clk 0:02:08]}  Nb6 {[%clk 0:02:08]} 24. g5 {[%clk 0:01:40]}  Nh5 {[%clk 0:02:03]} 25. b5 {[%clk 0:01:35]}  O-O-O {[%clk 0:01:44]} 26. bxc6 {[%clk 0:00:52]}  bxc6 {[%clk 0:01:43]} 27. c5 {[%clk 0:00:43]}  Nd5 {[%clk 0:01:38]} 28. Bg4+ {[%clk 0:00:28]}  Kb7 {[%clk 0:01:37]} 29. Rb1+ {[%clk 0:00:28]}  Ka8 {[%clk 0:01:37]} 30. Nd3 {[%clk 0:00:23]}  Ng3+ {[%clk 0:01:33]} 31. Kg2 {[%clk 0:00:22]}  Nf5 {[%clk 0:01:34]} 32. Kg1 {[%clk 0:00:15]}  Nxd4 {[%clk 0:01:33]} 33. Nb4 {[%clk 0:00:14]}  Nxb4 {[%clk 0:01:32]} 34. axb4 {[%clk 0:00:13]}  Kb7 {[%clk 0:01:32]} 35. Be3 {[%clk 0:00:12]}  Nb5 {[%clk 0:01:32]} 36. Bf3 {[%clk 0:00:11]}  Rd3 {[%clk 0:01:28]} 37. Kf2 {[%clk 0:00:11]}  Nc3 {[%clk 0:01:25]} 38. Rg1 {[%clk 0:00:07]}  Be5 {[%clk 0:01:22]} 39. Rg4 {[%clk 0:00:07]}  Nd1+ {[%clk 0:01:17]} 40. Bxd1 {[%clk 0:00:07]}  Rxd1 {[%clk 0:01:18]} 41. Re4 {[%clk 0:00:07]}  Rd5 {[%clk 0:01:17]} 42. Ke2 {[%clk 0:00:06]}  Kc8 {[%clk 0:01:14]} 43. Bd2 {[%clk 0:00:05]}  Kd7 {[%clk 0:01:14]} 44. Rc4 {[%clk 0:00:03]}  a6 {[%clk 0:01:14]} 45. Be3 {[%clk 0:00:03]}  Ke6 {[%clk 0:01:14]} 46. Rc2 {[%clk 0:00:03]}  Kf5 {[%clk 0:01:07]} 47. Ra2 {[%clk 0:00:03]}  Bc3 {[%clk 0:01:07]} 48. Rxa6 {[%clk 0:00:03]}  Re5 {[%clk 0:01:06]} 49. Kd3 {[%clk 0:00:03]}  Bxb4 {[%clk 0:01:06]} 50. Rxc6 {[%clk 0:00:03]}  Ba3 {[%clk 0:01:04]} 51. Bd4 {[%clk 0:00:03]}  Re1 {[%clk 0:01:02]} 52. Ra6 {[%clk 0:00:03]}  Rd1+ {[%clk 0:01:00]} 53. Kc4 {[%clk 0:00:03]}  Bc1 {[%clk 0:00:56]} 54. c6 {[%clk 0:00:03]}  Bf4 {[%clk 0:00:55]} 55. Ra5+ {[%clk 0:00:03]}  Ke6 {[%clk 0:00:54]} 56. Rb5 {[%clk 0:00:01]}  Bc7 {[%clk 0:00:53]} 57. Bc3 {[%clk 0:00:01]}  Kd6 {[%clk 0:00:51]} 58. Rc5 {[%clk 0:00:01]}  Rc1 {[%clk 0:00:50]} 59. Kb5 {[%clk 0:00:02]}  Rb1+ {[%clk 0:00:49]} 60. Bb4 {[%clk 0:00:02]}  Ke6 {[%clk 0:00:26]} 61. Rc4 {[%clk 0:00:02]}  Bd6 {[%clk 0:00:26]} 62. c7 {[%clk 0:00:02]}  Bxc7 {[%clk 0:00:13]} 63. Rxc7 {[%clk 0:00:02]}  Kf5 {[%clk 0:00:14]} 64. Rc5+ {[%clk 0:00:02]}  Kg4 {[%clk 0:00:14]} 65. Kc4 {[%clk 0:00:02]}  Rc1+ {[%clk 0:00:13]} 66. Bc3 {[%clk 0:00:03]}  Kf4 {[%clk 0:00:12]} 67. Kd3 {[%clk 0:00:04]}  Kg4 {[%clk 0:00:11]} 68. Rc4+ {[%clk 0:00:03]}  Kf5 {[%clk 0:00:10]} 69. Rc5+ {[%clk 0:00:04]}  Kg4 {[%clk 0:00:11]} 70. Rc4+ {[%clk 0:00:04]}  Kf5 {[%clk 0:00:11]} 71. Ra4 {[%clk 0:00:04]}  Rd1+ {[%clk 0:00:12]} 72. Bd2 {[%clk 0:00:05]}  Rb1 {[%clk 0:00:10]} 73. Rf4+ {[%clk 0:00:04]}  Ke5 {[%clk 0:00:10]} 74. Rf7 {[%clk 0:00:05]}  Rb3+ {[%clk 0:00:09]} 75. Bc3+ {[%clk 0:00:06]}  Ke6 {[%clk 0:00:07]} 76. Rxg7 {[%clk 0:00:06]}  Kf5 {[%clk 0:00:06]} 77. Kc4 {[%clk 0:00:06]}  Rb1 {[%clk 0:00:06]} 78. Bf6 {[%clk 0:00:07]}  Rc1+ {[%clk 0:00:05]} 79. Kd3 {[%clk 0:00:08]}  Rd1+ {[%clk 0:00:06]} 80. Ke2 {[%clk 0:00:08]}  Rc1 {[%clk 0:00:05]} 81. Ra7 {[%clk 0:00:09]}  Rc2+ {[%clk 0:00:05]} 82. Kf3 {[%clk 0:00:09]}  Rh2 {[%clk 0:00:03]} 83. Ra5+ {[%clk 0:00:09]}  Ke6 {[%clk 0:00:03]} 84. Ke4 {[%clk 0:00:10]}  Rh4+ {[%clk 0:00:03]} 85. Kf3 {[%clk 0:00:10]}  Rh3+ {[%clk 0:00:03]} 86. Kg4 {[%clk 0:00:11]}  Rh2 {[%clk 0:00:03]} 87. Re5+ {[%clk 0:00:11]}  Kf7 {[%clk 0:00:03]} 88. Re7+ {[%clk 0:00:12]}  Kf8 {[%clk 0:00:03]} 89. Ra7 {[%clk 0:00:12]}  Rg2+ {[%clk 0:00:02]} 90. Kf4 {[%clk 0:00:13]}  Rf2+ {[%clk 0:00:03]} 91. Ke4 {[%clk 0:00:13]}  Rf1 {[%clk 0:00:03]} 92. Kd5 {[%clk 0:00:14]}  Rd1+ {[%clk 0:00:03]} 93. Ke6 {[%clk 0:00:14]}  Re1+ {[%clk 0:00:00]} 94. Be5 {[%clk 0:00:15]} 1-0


[Site "https://www.chess.com"]

[Event "Titled Tuesday Blitz November 14 Late 2023"]
[White "Cervantes Landeiro, Thalia"]
[Black "Arnold, Ken"]
[WhiteFideId "3520498"]
[BlackFideId "2056836"]
[WhiteElo "2542"]
[BlackElo "2413"]
[Result "0-1"]
[Round "7"]
[TimeControl "180+1"]
[Date "2023.11.14"]
[WhiteClock "0:00:00"]
[BlackClock "0:00:57"]
[Board "76"]

1. d4 {[%clk 0:03:00]}  Nf6 {[%clk 0:02:59]} 2. c4 {[%clk 0:03:01]}  g6 {[%clk 0:02:58]} 3. Nc3 {[%clk 0:03:01]}  d5 {[%clk 0:02:57]} 4. cxd5 {[%clk 0:03:00]}  Nxd5 {[%clk 0:02:58]} 5. e4 {[%clk 0:03:01]}  Nxc3 {[%clk 0:02:58]} 6. bxc3 {[%clk 0:03:02]}  Bg7 {[%clk 0:02:58]} 7. Nf3 {[%clk 0:03:02]}  O-O {[%clk 0:02:58]} 8. Be2 {[%clk 0:03:02]}  b6 {[%clk 0:02:58]} 9. O-O {[%clk 0:03:02]}  Bb7 {[%clk 0:02:59]} 10. Qc2 {[%clk 0:02:57]}  Nc6 {[%clk 0:02:59]} 11. d5 {[%clk 0:02:54]}  Ne5 {[%clk 0:02:57]} 12. Nxe5 {[%clk 0:02:54]}  Bxe5 {[%clk 0:02:56]} 13. f4 {[%clk 0:02:55]}  Bd6 {[%clk 0:02:56]} 14. Be3 {[%clk 0:02:53]}  e5 {[%clk 0:02:53]} 15. c4 {[%clk 0:02:42]}  exf4 {[%clk 0:02:50]} 16. Bxf4 {[%clk 0:02:42]}  Bxf4 {[%clk 0:02:50]} 17. Rxf4 {[%clk 0:02:43]}  Qd6 {[%clk 0:02:48]} 18. Raf1 {[%clk 0:02:41]}  Rae8 {[%clk 0:02:45]} 19. Bd3 {[%clk 0:02:34]}  Qe5 {[%clk 0:02:43]} 20. Rh4 {[%clk 0:02:26]}  Qd4+ {[%clk 0:02:28]} 21. Kh1 {[%clk 0:02:25]}  f5 {[%clk 0:02:27]} 22. Re1 {[%clk 0:01:34]}  fxe4 {[%clk 0:02:20]} 23. Rhxe4 {[%clk 0:01:33]}  Rxe4 {[%clk 0:02:16]} 24. Bxe4 {[%clk 0:01:32]}  Rf2 {[%clk 0:02:07]} 25. Qb1 {[%clk 0:01:20]}  Rb2 {[%clk 0:02:02]} 26. Qc1 {[%clk 0:01:14]}  Qd2 {[%clk 0:01:58]} 27. Qxd2 {[%clk 0:00:44]}  Rxd2 {[%clk 0:01:57]} 28. Bf3 {[%clk 0:00:44]}  Kf8 {[%clk 0:01:50]} 29. h4 {[%clk 0:00:28]}  Bc8 {[%clk 0:01:48]} 30. a4 {[%clk 0:00:24]}  Rd4 {[%clk 0:01:37]} 31. Rc1 {[%clk 0:00:13]}  Rxh4+ {[%clk 0:01:36]} 32. Kg1 {[%clk 0:00:13]}  Rd4 {[%clk 0:01:36]} 33. Kf2 {[%clk 0:00:13]}  Rf4 {[%clk 0:01:33]} 34. Ke3 {[%clk 0:00:13]}  Rf6 {[%clk 0:01:33]} 35. c5 {[%clk 0:00:12]}  Bf5 {[%clk 0:01:30]} 36. cxb6 {[%clk 0:00:08]}  cxb6 {[%clk 0:01:30]} 37. Rc7 {[%clk 0:00:08]}  Rf7 {[%clk 0:01:30]} 38. Rc3 {[%clk 0:00:07]}  Bd7 {[%clk 0:01:27]} 39. Kd4 {[%clk 0:00:08]}  Bxa4 {[%clk 0:01:26]} 40. d6 {[%clk 0:00:08]}  Bd7 {[%clk 0:01:25]} 41. Ke5 {[%clk 0:00:08]}  Kg7 {[%clk 0:01:26]} 42. Rc7 {[%clk 0:00:07]}  Bf5 {[%clk 0:01:24]} 43. g4 {[%clk 0:00:04]}  Rxc7 {[%clk 0:01:16]} 44. dxc7 {[%clk 0:00:04]}  Bc8 {[%clk 0:01:16]} 45. Kd6 {[%clk 0:00:03]}  Kf8 {[%clk 0:01:14]} 46. Bc6 {[%clk 0:00:03]}  a5 {[%clk 0:01:07]} 47. g5 {[%clk 0:00:03]}  Kf7 {[%clk 0:01:02]} 48. Bd5+ {[%clk 0:00:02]}  Ke8 {[%clk 0:01:02]} 49. Be6 {[%clk 0:00:01]}  Bb7 {[%clk 0:01:00]} 50. Bd7+ {[%clk 0:00:02]}  Kf7 {[%clk 0:00:59]} 51. c8=Q {[%clk 0:00:01]}  Bxc8 {[%clk 0:00:59]} 52. Bxc8 {[%clk 0:00:02]}  a4 {[%clk 0:00:59]} 53. Ke5 {[%clk 0:00:02]}  a3 {[%clk 0:00:59]} 54. Be6+ {[%clk 0:00:02]}  Kg7 {[%clk 0:00:59]} 55. Bb3 {[%clk 0:00:03]}  h5 {[%clk 0:00:59]} 56. Kf4 {[%clk 0:00:00]}  b5 {[%clk 0:00:57]} 0-1


[Site "https://www.chess.com"]

[Event "Titled Tuesday Blitz November 14 Late 2023"]
[White "Lock, Gavin R"]
[Black "Pesotskiy, Mikhail"]
[WhiteFideId "408646"]
[BlackFideId "34164453"]
[WhiteElo "2266"]
[BlackElo "2511"]
[Result "0-1"]
[Round "7"]
[TimeControl "180+1"]
[Date "2023.11.14"]
[WhiteClock "0:00:07"]
[BlackClock "0:00:56"]
[Board "83"]

1. e4 {[%clk 0:03:00]}  e6 {[%clk 0:02:50]} 2. d4 {[%clk 0:03:00]}  d5 {[%clk 0:02:51]} 3. exd5 {[%clk 0:03:01]}  exd5 {[%clk 0:02:51]} 4. Nf3 {[%clk 0:03:01]}  Nf6 {[%clk 0:02:52]} 5. Bd3 {[%clk 0:03:01]}  Bd6 {[%clk 0:02:53]} 6. Qe2+ {[%clk 0:03:01]}  Be6 {[%clk 0:02:52]} 7. c4 {[%clk 0:03:00]}  O-O {[%clk 0:02:52]} 8. O-O {[%clk 0:03:00]}  dxc4 {[%clk 0:02:52]} 9. Bxc4 {[%clk 0:02:59]}  Bxc4 {[%clk 0:02:51]} 10. Qxc4 {[%clk 0:03:00]}  Nbd7 {[%clk 0:02:52]} 11. Nc3 {[%clk 0:02:54]}  c6 {[%clk 0:02:51]} 12. Bg5 {[%clk 0:02:53]}  h6 {[%clk 0:02:51]} 13. Bh4 {[%clk 0:02:53]}  Nb6 {[%clk 0:02:50]} 14. Qb3 {[%clk 0:02:53]}  Be7 {[%clk 0:02:42]} 15. Rfe1 {[%clk 0:02:48]}  Re8 {[%clk 0:02:41]} 16. Ne5 {[%clk 0:02:45]}  Nfd5 {[%clk 0:02:41]} 17. Bg3 {[%clk 0:02:35]}  f6 {[%clk 0:02:15]} 18. Ng6 {[%clk 0:02:23]}  Qd7 {[%clk 0:02:11]} 19. Ne4 {[%clk 0:02:11]}  Kh7 {[%clk 0:01:59]} 20. Nxe7 {[%clk 0:02:01]}  Qxe7 {[%clk 0:02:00]} 21. Ng5+ {[%clk 0:01:47]}  hxg5 {[%clk 0:01:56]} 22. Rxe7 {[%clk 0:01:48]}  Rxe7 {[%clk 0:01:57]} 23. h4 {[%clk 0:01:39]}  gxh4 {[%clk 0:01:56]} 24. Bxh4 {[%clk 0:01:37]}  Rae8 {[%clk 0:01:57]} 25. a4 {[%clk 0:01:25]}  Nf4 {[%clk 0:01:47]} 26. a5 {[%clk 0:01:04]}  Nbd5 {[%clk 0:01:43]} 27. Bg3 {[%clk 0:00:53]}  Ne2+ {[%clk 0:01:42]} 28. Kh2 {[%clk 0:00:51]}  Nxg3 {[%clk 0:01:36]} 29. Kxg3 {[%clk 0:00:50]}  a6 {[%clk 0:01:35]} 30. Rh1+ {[%clk 0:00:35]}  Kg8 {[%clk 0:01:24]} 31. Qc2 {[%clk 0:00:28]}  Re4 {[%clk 0:01:22]} 32. f3 {[%clk 0:00:26]}  Re2 {[%clk 0:00:59]} 33. Qh7+ {[%clk 0:00:24]}  Kf7 {[%clk 0:01:00]} 34. Qh5+ {[%clk 0:00:22]}  Ke7 {[%clk 0:01:00]} 35. Qg6 {[%clk 0:00:07]}  Rxg2+ {[%clk 0:00:56]} 0-1


[Site "https://www.chess.com"]

[Event "Titled Tuesday Blitz November 14 Late 2023"]
[White "Djordjevic, Dejan N"]
[Black "Kochiev, Ivan"]
[WhiteFideId "913316"]
[BlackFideId "2917890"]
[WhiteElo "2065"]
[BlackElo "2507"]
[Result "1-0"]
[Round "7"]
[TimeControl "180+1"]
[Date "2023.11.14"]
[WhiteClock "0:00:19"]
[BlackClock "0:00:03"]
[Board "84"]

1. e4 {[%clk 0:03:00]}  e5 {[%clk 0:02:58]} 2. Nf3 {[%clk 0:03:00]}  Nf6 {[%clk 0:02:59]} 3. Nxe5 {[%clk 0:03:00]}  Nc6 {[%clk 0:03:00]} 4. Nxc6 {[%clk 0:02:59]}  dxc6 {[%clk 0:03:00]} 5. d3 {[%clk 0:02:59]}  Bc5 {[%clk 0:03:01]} 6. Be2 {[%clk 0:03:00]}  h5 {[%clk 0:03:00]} 7. c3 {[%clk 0:02:59]}  Ng4 {[%clk 0:02:54]} 8. d4 {[%clk 0:02:56]}  Qh4 {[%clk 0:02:55]} 9. g3 {[%clk 0:02:51]}  Qf6 {[%clk 0:02:54]} 10. Bf3 {[%clk 0:02:44]}  Bb6 {[%clk 0:02:41]} 11. Na3 {[%clk 0:02:40]}  Be6 {[%clk 0:02:37]} 12. Qe2 {[%clk 0:02:32]}  O-O-O {[%clk 0:02:32]} 13. h4 {[%clk 0:02:28]}  Rd7 {[%clk 0:01:57]} 14. Bf4 {[%clk 0:02:16]}  Re8 {[%clk 0:01:47]} 15. Nc4 {[%clk 0:01:54]}  Bxc4 {[%clk 0:01:25]} 16. Qxc4 {[%clk 0:01:53]}  c5 {[%clk 0:01:26]} 17. Bxg4 {[%clk 0:01:31]}  hxg4 {[%clk 0:01:25]} 18. d5 {[%clk 0:01:26]}  Qf5 {[%clk 0:01:07]} 19. e5 {[%clk 0:01:22]}  f6 {[%clk 0:00:49]} 20. O-O-O {[%clk 0:01:21]}  fxe5 {[%clk 0:00:48]} 21. Be3 {[%clk 0:01:21]}  e4 {[%clk 0:00:39]} 22. Bf4 {[%clk 0:01:12]}  Red8 {[%clk 0:00:34]} 23. Rhe1 {[%clk 0:01:11]}  Rxd5 {[%clk 0:00:20]} 24. Rxd5 {[%clk 0:01:10]}  Qxd5 {[%clk 0:00:13]} 25. Qxe4 {[%clk 0:01:07]}  c4 {[%clk 0:00:11]} 26. Qxd5 {[%clk 0:01:06]}  Rxd5 {[%clk 0:00:12]} 27. Re2 {[%clk 0:01:05]}  Kd7 {[%clk 0:00:08]} 28. Kc2 {[%clk 0:01:04]}  Rd3 {[%clk 0:00:08]} 29. h5 {[%clk 0:00:30]}  Rf3 {[%clk 0:00:08]} 30. Be5 {[%clk 0:00:27]}  Bxf2 {[%clk 0:00:03]} 31. Bxg7 {[%clk 0:00:27]}  Bxg3 {[%clk 0:00:02]} 32. h6 {[%clk 0:00:27]}  Bf4 {[%clk 0:00:01]} 33. h7 {[%clk 0:00:27]}  Rh3 {[%clk 0:00:02]} 34. h8=Q {[%clk 0:00:26]}  Rxh8 {[%clk 0:00:03]} 35. Bxh8 {[%clk 0:00:27]}  Bg3 {[%clk 0:00:04]} 36. Rg2 {[%clk 0:00:25]}  Be5 {[%clk 0:00:03]} 37. Rxg4 {[%clk 0:00:25]}  Bxh8 {[%clk 0:00:04]} 38. Rxc4 {[%clk 0:00:25]}  c6 {[%clk 0:00:04]} 39. Rh4 {[%clk 0:00:25]}  Be5 {[%clk 0:00:04]} 40. Rh7+ {[%clk 0:00:25]}  Kc8 {[%clk 0:00:04]} 41. b4 {[%clk 0:00:24]}  Bc7 {[%clk 0:00:04]} 42. a4 {[%clk 0:00:24]}  b6 {[%clk 0:00:04]} 43. c4 {[%clk 0:00:24]}  Kb7 {[%clk 0:00:04]} 44. Kd3 {[%clk 0:00:24]}  Kb8 {[%clk 0:00:04]} 45. Ke4 {[%clk 0:00:24]}  Bd6 {[%clk 0:00:04]} 46. b5 {[%clk 0:00:24]}  cxb5 {[%clk 0:00:04]} 47. axb5 {[%clk 0:00:23]}  Bc5 {[%clk 0:00:03]} 48. Kd5 {[%clk 0:00:24]}  Be3 {[%clk 0:00:03]} 49. Kc6 {[%clk 0:00:24]}  Bd4 {[%clk 0:00:02]} 50. Rd7 {[%clk 0:00:22]}  Bf6 {[%clk 0:00:02]} 51. Rf7 {[%clk 0:00:22]}  Bd8 {[%clk 0:00:03]} 52. Rf8 {[%clk 0:00:20]}  Kc8 {[%clk 0:00:03]} 53. Rg8 {[%clk 0:00:19]}  Kb8 {[%clk 0:00:03]} 54. Rxd8# {[%clk 0:00:19]} 1-0


[Site "https://www.chess.com"]

[Event "Titled Tuesday Blitz November 14 Late 2023"]
[White "Sanchez Alvares, Kelvin Antonio"]
[Black "Sivanandan, Bodhana"]
[WhiteFideId "3906680"]
[BlackFideId "497592"]
[WhiteElo "2566"]
[BlackElo "2197"]
[Result "1-0"]
[Round "7"]
[TimeControl "180+1"]
[Date "2023.11.14"]
[WhiteClock "0:01:09"]
[BlackClock "0:00:12"]
[Board "85"]

1. e4 {[%clk 0:03:00]}  e6 {[%clk 0:02:59]} 2. d4 {[%clk 0:02:59]}  d5 {[%clk 0:02:59]} 3. Nc3 {[%clk 0:02:58]}  Bb4 {[%clk 0:02:57]} 4. e5 {[%clk 0:02:58]}  Bxc3+ {[%clk 0:02:56]} 5. bxc3 {[%clk 0:02:58]}  Ne7 {[%clk 0:02:56]} 6. Qg4 {[%clk 0:02:58]}  Ng6 {[%clk 0:02:53]} 7. h4 {[%clk 0:02:58]}  h5 {[%clk 0:02:47]} 8. Qg3 {[%clk 0:02:58]}  c5 {[%clk 0:02:44]} 9. Bd3 {[%clk 0:02:57]}  Ne7 {[%clk 0:02:35]} 10. Qxg7 {[%clk 0:02:50]}  Rg8 {[%clk 0:02:35]} 11. Qf6 {[%clk 0:02:46]}  Nd7 {[%clk 0:02:30]} 12. Qf3 {[%clk 0:02:44]}  Qa5 {[%clk 0:02:25]} 13. Bd2 {[%clk 0:02:43]}  c4 {[%clk 0:02:14]} 14. Be2 {[%clk 0:02:41]}  b6 {[%clk 0:01:56]} 15. Nh3 {[%clk 0:02:40]}  Nf5 {[%clk 0:01:49]} 16. Nf4 {[%clk 0:02:38]}  Qa3 {[%clk 0:01:38]} 17. Nxh5 {[%clk 0:02:28]}  Qb2 {[%clk 0:01:37]} 18. Rc1 {[%clk 0:02:24]}  Qxa2 {[%clk 0:01:27]} 19. g4 {[%clk 0:02:21]}  Ne7 {[%clk 0:01:26]} 20. Nf6+ {[%clk 0:02:21]}  Nxf6 {[%clk 0:01:26]} 21. exf6 {[%clk 0:02:21]}  Nc6 {[%clk 0:01:22]} 22. h5 {[%clk 0:02:19]}  Bd7 {[%clk 0:01:22]} 23. g5 {[%clk 0:02:18]}  O-O-O {[%clk 0:01:16]} 24. g6 {[%clk 0:02:13]}  fxg6 {[%clk 0:01:12]} 25. f7 {[%clk 0:02:13]}  Rgf8 {[%clk 0:01:05]} 26. hxg6 {[%clk 0:02:13]}  e5 {[%clk 0:01:05]} 27. g7 {[%clk 0:02:10]}  exd4 {[%clk 0:01:03]} 28. gxf8=Q {[%clk 0:02:07]}  Rxf8 {[%clk 0:00:59]} 29. Bh6 {[%clk 0:02:07]}  Qa3 {[%clk 0:00:54]} 30. O-O {[%clk 0:01:56]}  Ne5 {[%clk 0:00:47]} 31. Qxd5 {[%clk 0:01:48]}  Rxf7 {[%clk 0:00:39]} 32. Qxe5 {[%clk 0:01:45]}  Re7 {[%clk 0:00:37]} 33. Qh5 {[%clk 0:01:31]}  Qxc3 {[%clk 0:00:27]} 34. Bf3 {[%clk 0:01:26]}  Be8 {[%clk 0:00:20]} 35. Qd5 {[%clk 0:01:20]}  Rc7 {[%clk 0:00:16]} 36. Bg4+ {[%clk 0:01:16]}  Kb8 {[%clk 0:00:15]} 37. Bf4 {[%clk 0:01:15]}  Qb4 {[%clk 0:00:12]} 38. Qd8+ {[%clk 0:01:12]}  Kb7 {[%clk 0:00:12]} 39. Qxc7+ {[%clk 0:01:13]}  Ka6 {[%clk 0:00:12]} 40. Qc8+ {[%clk 0:01:11]}  Kb5 {[%clk 0:00:12]} 41. Qxe8+ {[%clk 0:01:11]}  Ka5 {[%clk 0:00:12]} 42. Ra1+ {[%clk 0:01:10]}  Qa4 {[%clk 0:00:12]} 43. Qxa4# {[%clk 0:01:09]} 1-0


[Site "https://www.chess.com"]

[Event "Titled Tuesday Blitz November 14 Late 2023"]
[White "Akhayan, Ruben"]
[Black "Karamsetty, Jeevan"]
[WhiteFideId "204439"]
[BlackFideId "2025337"]
[WhiteElo "2426"]
[BlackElo "2537"]
[Result "0-1"]
[Round "7"]
[TimeControl "180+1"]
[Date "2023.11.14"]
[WhiteClock "0:00:15"]
[BlackClock "0:00:56"]
[Board "86"]

1. e4 {[%clk 0:03:00]}  d6 {[%clk 0:02:59]} 2. d4 {[%clk 0:03:00]}  Nf6 {[%clk 0:02:59]} 3. Nc3 {[%clk 0:02:59]}  e5 {[%clk 0:03:00]} 4. Nf3 {[%clk 0:02:54]}  Nbd7 {[%clk 0:02:59]} 5. g4 {[%clk 0:02:53]}  g6 {[%clk 0:02:57]} 6. h3 {[%clk 0:02:50]}  Bg7 {[%clk 0:02:55]} 7. Be3 {[%clk 0:02:51]}  O-O {[%clk 0:02:53]} 8. Qd2 {[%clk 0:02:45]}  exd4 {[%clk 0:02:50]} 9. Nxd4 {[%clk 0:02:44]}  Re8 {[%clk 0:02:49]} 10. Bg2 {[%clk 0:02:45]}  Nc5 {[%clk 0:02:48]} 11. f3 {[%clk 0:02:35]}  c6 {[%clk 0:02:48]} 12. O-O-O {[%clk 0:02:34]}  d5 {[%clk 0:02:46]} 13. exd5 {[%clk 0:02:13]}  Nxd5 {[%clk 0:02:46]} 14. Nxd5 {[%clk 0:02:11]}  Qxd5 {[%clk 0:02:46]} 15. Kb1 {[%clk 0:02:10]}  Na4 {[%clk 0:02:24]} 16. f4 {[%clk 0:02:02]}  Qd8 {[%clk 0:02:07]} 17. Qb4 {[%clk 0:01:49]}  Rxe3 {[%clk 0:01:32]} 18. Qxa4 {[%clk 0:01:43]}  Qe8 {[%clk 0:01:29]} 19. Nb3 {[%clk 0:01:12]}  a5 {[%clk 0:01:21]} 20. Qc4 {[%clk 0:00:58]}  Be6 {[%clk 0:01:19]} 21. Qc5 {[%clk 0:00:53]}  Bxb3 {[%clk 0:01:18]} 22. axb3 {[%clk 0:00:52]}  a4 {[%clk 0:01:15]} 23. bxa4 {[%clk 0:00:51]}  Rxa4 {[%clk 0:01:14]} 24. Rd8 {[%clk 0:00:31]}  Qxd8 {[%clk 0:01:13]} 25. Qxe3 {[%clk 0:00:32]}  Qa8 {[%clk 0:01:11]} 26. Kc1 {[%clk 0:00:26]}  Ra1+ {[%clk 0:01:07]} 27. Kd2 {[%clk 0:00:27]}  Bxb2 {[%clk 0:01:04]} 28. Rxa1 {[%clk 0:00:26]}  Qxa1 {[%clk 0:01:04]} 29. Qe8+ {[%clk 0:00:19]}  Kg7 {[%clk 0:01:04]} 30. f5 {[%clk 0:00:18]}  Qc1+ {[%clk 0:00:59]} 31. Kd3 {[%clk 0:00:18]}  Qd1+ {[%clk 0:00:58]} 32. Kc4 {[%clk 0:00:15]}  Qxc2+ {[%clk 0:00:56]} 0-1


[Site "https://www.chess.com"]

[Event "Titled Tuesday Blitz November 14 Late 2023"]
[White "Marchesich, Giovanni"]
[Black "Przybylski, Wojciech"]
[WhiteFideId "2824790"]
[BlackFideId "1117599"]
[WhiteElo "2403"]
[BlackElo "2501"]
[Result "0-1"]
[Round "7"]
[TimeControl "180+1"]
[Date "2023.11.14"]
[WhiteClock "0:00:03"]
[BlackClock "0:00:08"]
[Board "88"]

1. e4 {[%clk 0:03:00]}  e5 {[%clk 0:02:59]} 2. Nf3 {[%clk 0:03:00]}  Nf6 {[%clk 0:03:00]} 3. Nc3 {[%clk 0:03:01]}  Bb4 {[%clk 0:02:57]} 4. Nxe5 {[%clk 0:03:00]}  O-O {[%clk 0:02:57]} 5. Nd3 {[%clk 0:03:00]}  Bxc3 {[%clk 0:02:56]} 6. dxc3 {[%clk 0:03:01]}  Nxe4 {[%clk 0:02:56]} 7. Be2 {[%clk 0:03:01]}  d5 {[%clk 0:02:55]} 8. O-O {[%clk 0:03:01]}  c6 {[%clk 0:02:55]} 9. Be3 {[%clk 0:02:57]}  Re8 {[%clk 0:02:54]} 10. Re1 {[%clk 0:02:55]}  Bf5 {[%clk 0:02:53]} 11. Bf1 {[%clk 0:02:53]}  Nd7 {[%clk 0:02:53]} 12. f3 {[%clk 0:02:49]}  Nd6 {[%clk 0:02:50]} 13. Qd2 {[%clk 0:02:50]}  Nc4 {[%clk 0:02:49]} 14. Qc1 {[%clk 0:02:43]}  Nxe3 {[%clk 0:02:49]} 15. Rxe3 {[%clk 0:02:44]}  Qb6 {[%clk 0:02:50]} 16. Kf2 {[%clk 0:02:41]}  Re7 {[%clk 0:02:48]} 17. Qd2 {[%clk 0:02:33]}  Rae8 {[%clk 0:02:47]} 18. Re1 {[%clk 0:02:33]}  h6 {[%clk 0:02:13]} 19. a4 {[%clk 0:02:27]}  a5 {[%clk 0:02:10]} 20. b4 {[%clk 0:02:16]}  Bg6 {[%clk 0:01:33]} 21. bxa5 {[%clk 0:01:56]}  Qa7 {[%clk 0:01:32]} 22. Nf4 {[%clk 0:01:50]}  Nf6 {[%clk 0:01:19]} 23. Nxg6 {[%clk 0:01:40]}  fxg6 {[%clk 0:01:19]} 24. Qd4 {[%clk 0:01:40]}  c5 {[%clk 0:01:18]} 25. Qd3 {[%clk 0:01:00]}  Rxe3 {[%clk 0:01:15]} 26. Rxe3 {[%clk 0:01:00]}  Rxe3 {[%clk 0:01:14]} 27. Qxe3 {[%clk 0:00:47]}  Qxa5 {[%clk 0:01:13]} 28. Bb5 {[%clk 0:00:48]}  Kh7 {[%clk 0:01:10]} 29. Qe5 {[%clk 0:00:44]}  Qb6 {[%clk 0:01:04]} 30. Ke2 {[%clk 0:00:39]}  Qd8 {[%clk 0:01:02]} 31. Kd3 {[%clk 0:00:31]}  b6 {[%clk 0:01:00]} 32. g4 {[%clk 0:00:30]}  g5 {[%clk 0:00:55]} 33. Kd2 {[%clk 0:00:27]}  Kh8 {[%clk 0:00:48]} 34. h3 {[%clk 0:00:24]}  Ng8 {[%clk 0:00:44]} 35. Qe6 {[%clk 0:00:18]}  Ne7 {[%clk 0:00:42]} 36. Bd3 {[%clk 0:00:17]}  Qc7 {[%clk 0:00:38]} 37. Kc1 {[%clk 0:00:16]}  Qf4+ {[%clk 0:00:32]} 38. Kb2 {[%clk 0:00:15]}  Qf6 {[%clk 0:00:26]} 39. Qe2 {[%clk 0:00:05]}  Kg8 {[%clk 0:00:24]} 40. Qe3 {[%clk 0:00:05]}  Kf7 {[%clk 0:00:23]} 41. Bb5 {[%clk 0:00:05]}  Qd6 {[%clk 0:00:23]} 42. Qd3 {[%clk 0:00:05]}  Ng8 {[%clk 0:00:19]} 43. c4 {[%clk 0:00:05]}  d4 {[%clk 0:00:18]} 44. c3 {[%clk 0:00:05]}  Nf6 {[%clk 0:00:18]} 45. cxd4 {[%clk 0:00:05]}  cxd4 {[%clk 0:00:18]} 46. Qc2 {[%clk 0:00:03]}  Qe5 {[%clk 0:00:18]} 47. Qd3 {[%clk 0:00:03]}  Qc5 {[%clk 0:00:16]} 48. Kb3 {[%clk 0:00:03]}  Ke6 {[%clk 0:00:15]} 49. Qd2 {[%clk 0:00:04]}  Kd6 {[%clk 0:00:15]} 50. Qe2 {[%clk 0:00:04]}  Ng8 {[%clk 0:00:09]} 51. Qd3 {[%clk 0:00:04]}  Ne7 {[%clk 0:00:09]} 52. Qe4 {[%clk 0:00:04]}  Qe5 {[%clk 0:00:09]} 53. Qd3 {[%clk 0:00:03]}  Qe1 {[%clk 0:00:08]} 54. Kc2 {[%clk 0:00:02]}  Qa1 {[%clk 0:00:08]} 55. Kd2 {[%clk 0:00:03]}  Qb2+ {[%clk 0:00:08]} 56. Ke1 {[%clk 0:00:03]}  Qc1+ {[%clk 0:00:07]} 57. Kf2 {[%clk 0:00:03]}  Qh1 {[%clk 0:00:08]} 58. Kg3 {[%clk 0:00:03]}  Qg1# {[%clk 0:00:08]} 0-1


[Site "https://www.chess.com"]